[Event "Titled Tuesday Blitz March 21 Early 2023"]
[White "Lorenzo De La Riva, Lazaro"]
[Black "Daneshvar, Bardiya"]
[WhiteFideId "2268809"]
[BlackFideId "12576468"]
[WhiteElo "2294"]
[BlackElo "2468"]
[Result "0-1"]
[Round "03"]
[TimeControl "180+2"]
[Date "2023.03.21"]
[WhiteClock "0:00:06"]
[BlackClock "0:01:52"]

1. e4 {[%clk 0:03:00]}  Nf6 {[%clk 0:02:48]} 2. e5 {[%clk 0:03:00]}  Nd5 {[%clk 0:02:49]} 3. d4 {[%clk 0:02:59]}  d6 {[%clk 0:02:49]} 4. f4 {[%clk 0:02:56]}  Bf5 {[%clk 0:02:44]} 5. c4 {[%clk 0:02:54]}  Nb4 {[%clk 0:02:35]} 6. Na3 {[%clk 0:02:51]}  e6 {[%clk 0:02:25]} 7. Nf3 {[%clk 0:02:29]}  d5 {[%clk 0:02:19]} 8. c5 {[%clk 0:02:11]}  a5 {[%clk 0:02:15]} 9. Bb5+ {[%clk 0:02:06]}  c6 {[%clk 0:02:14]} 10. Be2 {[%clk 0:02:00]}  Nd7 {[%clk 0:02:14]} 11. O-O {[%clk 0:01:58]}  b6 {[%clk 0:02:14]} 12. cxb6 {[%clk 0:01:56]}  Qxb6 {[%clk 0:02:15]} 13. Be3 {[%clk 0:01:31]}  Be7 {[%clk 0:02:14]} 14. Nd2 {[%clk 0:01:19]}  Nd3 {[%clk 0:02:12]} 15. Ndc4 {[%clk 0:00:38]}  dxc4 {[%clk 0:02:06]} 16. Nxc4 {[%clk 0:00:39]}  Nxb2 {[%clk 0:02:04]} 17. Nxb6 {[%clk 0:00:37]}  Nxd1 {[%clk 0:02:04]} 18. Nxa8 {[%clk 0:00:37]}  Nxe3 {[%clk 0:02:04]} 19. Rfc1 {[%clk 0:00:28]}  Nc2 {[%clk 0:02:01]} 20. Rab1 {[%clk 0:00:26]}  Ba3 {[%clk 0:02:00]} 21. Rd1 {[%clk 0:00:16]}  Nxd4 {[%clk 0:02:00]} 22. Rb7 {[%clk 0:00:10]}  Nxe2+ {[%clk 0:01:59]} 23. Kf2 {[%clk 0:00:10]}  O-O {[%clk 0:01:59]} 24. Rdxd7 {[%clk 0:00:09]}  Nxf4 {[%clk 0:01:58]} 25. Nb6 {[%clk 0:00:08]}  Nd3+ {[%clk 0:01:57]} 26. Kg3 {[%clk 0:00:06]}  Nc5 {[%clk 0:01:57]} 27. Rbc7 {[%clk 0:00:03]}  Nxd7 {[%clk 0:01:57]} 28. Nxd7 {[%clk 0:00:04]}  Rd8 {[%clk 0:01:57]} 29. Kh4 {[%clk 0:00:04]}  h6 {[%clk 0:01:55]} 30. g4 {[%clk 0:00:05]}  Bg6 {[%clk 0:01:54]} 31. Kg3 {[%clk 0:00:05]}  c5 {[%clk 0:01:54]} 32. h4 {[%clk 0:00:06]}  c4 {[%clk 0:01:53]} 33. h5 {[%clk 0:00:07]}  Bd3 {[%clk 0:01:53]} 34. Nb6 {[%clk 0:00:06]}  Bc1 {[%clk 0:01:53]} 35. Nc8 {[%clk 0:00:06]}  Bg5 {[%clk 0:01:52]} 0-1


[Site "https://www.chess.com"]

[Event "Titled Tuesday Blitz March 21 Early 2023"]
[White "Starozhilov, Leonid"]
[Black "Zhigalko, Sergei"]
[WhiteFideId "14106752"]
[BlackFideId "13502956"]
[WhiteElo "2402"]
[BlackElo "2626"]
[Result "0-1"]
[Round "03"]
[TimeControl "180+2"]
[Date "2023.03.21"]
[WhiteClock "0:00:04"]
[BlackClock "0:00:30"]

1. e4 {[%clk 0:03:00]}  c5 {[%clk 0:03:00]} 2. Nf3 {[%clk 0:03:00]}  Nc6 {[%clk 0:02:59]} 3. Bb5 {[%clk 0:03:01]}  Nf6 {[%clk 0:02:59]} 4. Bxc6 {[%clk 0:02:57]}  dxc6 {[%clk 0:02:59]} 5. d3 {[%clk 0:02:56]}  Bg4 {[%clk 0:02:59]} 6. h3 {[%clk 0:02:56]}  Bh5 {[%clk 0:02:59]} 7. Nc3 {[%clk 0:02:48]}  Qc7 {[%clk 0:02:58]} 8. Be3 {[%clk 0:02:43]}  Nd7 {[%clk 0:02:53]} 9. g4 {[%clk 0:02:37]}  Bg6 {[%clk 0:02:52]} 10. Nh4 {[%clk 0:02:34]}  e6 {[%clk 0:02:39]} 11. f4 {[%clk 0:02:11]}  Be7 {[%clk 0:02:37]} 12. Nf3 {[%clk 0:01:47]}  f6 {[%clk 0:02:35]} 13. Qe2 {[%clk 0:01:46]}  O-O-O {[%clk 0:02:33]} 14. f5 {[%clk 0:01:44]}  Bf7 {[%clk 0:02:33]} 15. fxe6 {[%clk 0:01:44]}  Bxe6 {[%clk 0:02:33]} 16. O-O-O {[%clk 0:01:06]}  Rhe8 {[%clk 0:02:31]} 17. Kb1 {[%clk 0:01:04]}  Qa5 {[%clk 0:02:24]} 18. Bd2 {[%clk 0:01:00]}  Bd6 {[%clk 0:02:13]} 19. b3 {[%clk 0:00:59]}  Qc7 {[%clk 0:02:09]} 20. Bc1 {[%clk 0:00:52]}  Nf8 {[%clk 0:02:02]} 21. Bb2 {[%clk 0:00:49]}  Bf7 {[%clk 0:02:00]} 22. h4 {[%clk 0:00:40]}  Ne6 {[%clk 0:02:00]} 23. g5 {[%clk 0:00:36]}  Bh5 {[%clk 0:02:00]} 24. Qf2 {[%clk 0:00:31]}  Rf8 {[%clk 0:01:56]} 25. Qg2 {[%clk 0:00:16]}  fxg5 {[%clk 0:01:45]} 26. Nxg5 {[%clk 0:00:17]}  Nf4 {[%clk 0:01:45]} 27. Qg1 {[%clk 0:00:15]}  h6 {[%clk 0:01:45]} 28. e5 {[%clk 0:00:09]}  Bxe5 {[%clk 0:01:41]} 29. Nge4 {[%clk 0:00:09]}  Bxd1 {[%clk 0:01:40]} 30. Qxd1 {[%clk 0:00:10]}  b6 {[%clk 0:01:34]} 31. Rg1 {[%clk 0:00:09]}  Rf7 {[%clk 0:01:34]} 32. Qg4+ {[%clk 0:00:09]}  Kb7 {[%clk 0:01:34]} 33. h5 {[%clk 0:00:06]}  Rdf8 {[%clk 0:01:34]} 34. a4 {[%clk 0:00:06]}  Rf5 {[%clk 0:01:27]} 35. a5 {[%clk 0:00:06]}  Rxh5 {[%clk 0:01:22]} 36. axb6 {[%clk 0:00:05]}  axb6 {[%clk 0:01:23]} 37. Na4 {[%clk 0:00:04]}  Bxb2 {[%clk 0:01:18]} 38. Kxb2 {[%clk 0:00:04]}  Rg5 {[%clk 0:01:18]} 39. Nxg5 {[%clk 0:00:04]}  hxg5 {[%clk 0:01:05]} 40. Qxg5 {[%clk 0:00:04]}  Nh3 {[%clk 0:01:05]} 41. Qxg7 {[%clk 0:00:03]}  Rf7 {[%clk 0:01:06]} 42. Qg3 {[%clk 0:00:03]}  Nxg1 {[%clk 0:01:05]} 43. Qxg1 {[%clk 0:00:03]}  Qe5+ {[%clk 0:01:05]} 44. Ka2 {[%clk 0:00:03]}  Rg7 {[%clk 0:01:01]} 45. Qa1 {[%clk 0:00:01]}  Qd4 {[%clk 0:00:48]} 46. Qxd4 {[%clk 0:00:01]}  cxd4 {[%clk 0:00:49]} 47. Nb2 {[%clk 0:00:01]}  b5 {[%clk 0:00:49]} 48. b4 {[%clk 0:00:01]}  Rg1 {[%clk 0:00:46]} 49. Kb3 {[%clk 0:00:02]}  Kc7 {[%clk 0:00:43]} 50. c3 {[%clk 0:00:02]}  dxc3 {[%clk 0:00:44]} 51. Kxc3 {[%clk 0:00:02]}  Kd6 {[%clk 0:00:44]} 52. Kb3 {[%clk 0:00:02]}  Kd5 {[%clk 0:00:45]} 53. Kc3 {[%clk 0:00:03]}  Rh1 {[%clk 0:00:45]} 54. Kb3 {[%clk 0:00:03]}  Kd4 {[%clk 0:00:46]} 55. Kc2 {[%clk 0:00:03]}  Rh2+ {[%clk 0:00:45]} 56. Kb3 {[%clk 0:00:04]}  Rxb2+ {[%clk 0:00:29]} 57. Kxb2 {[%clk 0:00:04]}  Kxd3 {[%clk 0:00:30]} 58. Kb3 {[%clk 0:00:04]}  Kd4 {[%clk 0:00:30]} 0-1


[Site "https://www.chess.com"]

[Event "Titled Tuesday Blitz March 21 Early 2023"]
[White "Harsha Bharathakoti"]
[Black "Aaditya Dhingra"]
[WhiteFideId "5078776"]
[BlackFideId "25678191"]
[WhiteElo "2481"]
[BlackElo "2083"]
[Result "1-0"]
[Round "03"]
[TimeControl "180+2"]
[Date "2023.03.21"]
[WhiteClock "0:00:25"]
[BlackClock "0:01:14"]

1. c4 {[%clk 0:02:51]}  e6 {[%clk 0:02:59]} 2. Nf3 {[%clk 0:02:50]}  d5 {[%clk 0:02:58]} 3. e3 {[%clk 0:02:51]}  Nf6 {[%clk 0:02:58]} 4. Nc3 {[%clk 0:02:51]}  c6 {[%clk 0:02:58]} 5. b3 {[%clk 0:02:52]}  Nbd7 {[%clk 0:02:58]} 6. Bb2 {[%clk 0:02:52]}  Bd6 {[%clk 0:02:57]} 7. d4 {[%clk 0:02:51]}  O-O {[%clk 0:02:57]} 8. Bd3 {[%clk 0:02:50]}  b6 {[%clk 0:02:56]} 9. O-O {[%clk 0:02:50]}  Bb7 {[%clk 0:02:55]} 10. Qc2 {[%clk 0:02:50]}  Rc8 {[%clk 0:02:55]} 11. Rad1 {[%clk 0:02:50]}  Qe7 {[%clk 0:02:54]} 12. Rfe1 {[%clk 0:02:50]}  c5 {[%clk 0:02:52]} 13. cxd5 {[%clk 0:02:48]}  exd5 {[%clk 0:02:51]} 14. Qb1 {[%clk 0:02:37]}  a6 {[%clk 0:02:48]} 15. Bf5 {[%clk 0:02:30]}  g6 {[%clk 0:02:45]} 16. dxc5 {[%clk 0:02:26]}  bxc5 {[%clk 0:02:27]} 17. Bh3 {[%clk 0:01:10]}  Rcd8 {[%clk 0:02:22]} 18. g3 {[%clk 0:01:10]}  Ne5 {[%clk 0:02:16]} 19. Nxe5 {[%clk 0:01:09]}  Bxe5 {[%clk 0:02:17]} 20. Bg2 {[%clk 0:01:09]}  Rfe8 {[%clk 0:02:15]} 21. Na4 {[%clk 0:01:08]}  Bxb2 {[%clk 0:02:13]} 22. Qxb2 {[%clk 0:01:08]}  Bc6 {[%clk 0:02:08]} 23. Nxc5 {[%clk 0:01:07]}  Ne4 {[%clk 0:01:59]} 24. Nxe4 {[%clk 0:00:55]}  dxe4 {[%clk 0:01:58]} 25. h4 {[%clk 0:00:52]}  h5 {[%clk 0:01:55]} 26. Bf1 {[%clk 0:00:33]}  a5 {[%clk 0:01:52]} 27. Qc3 {[%clk 0:00:31]}  Qb7 {[%clk 0:01:28]} 28. Rxd8 {[%clk 0:00:29]}  Rxd8 {[%clk 0:01:27]} 29. Qxa5 {[%clk 0:00:30]}  Rd6 {[%clk 0:01:22]} 30. Rc1 {[%clk 0:00:28]}  Rf6 {[%clk 0:01:19]} 31. Qe5 {[%clk 0:00:27]}  Rf5 {[%clk 0:01:19]} 32. Qd4 {[%clk 0:00:27]}  Bb5 {[%clk 0:01:16]} 33. Qd8+ {[%clk 0:00:25]}  Kh7 {[%clk 0:01:14]} 34. Rc8 {[%clk 0:00:25]} 1-0


[Site "https://www.chess.com"]

[Event "Titled Tuesday Blitz March 21 Early 2023"]
[White "Crevatin, Leo"]
[Black "Aditya Mittal"]
[WhiteFideId "1726307"]
[BlackFideId "35042025"]
[WhiteElo "2190"]
[BlackElo "2396"]
[Result "0-1"]
[Round "03"]
[TimeControl "180+2"]
[Date "2023.03.21"]
[WhiteClock "0:00:02"]
[BlackClock "0:00:17"]

1. e4 {[%clk 0:03:00]}  c5 {[%clk 0:03:00]} 2. Nf3 {[%clk 0:02:58]}  d6 {[%clk 0:03:00]} 3. d4 {[%clk 0:02:57]}  cxd4 {[%clk 0:03:01]} 4. Nxd4 {[%clk 0:02:58]}  Nf6 {[%clk 0:03:02]} 5. Nc3 {[%clk 0:02:59]}  a6 {[%clk 0:03:03]} 6. Bc4 {[%clk 0:02:58]}  e6 {[%clk 0:03:01]} 7. Be3 {[%clk 0:02:58]}  Nbd7 {[%clk 0:02:47]} 8. Bb3 {[%clk 0:02:27]}  Nc5 {[%clk 0:02:45]} 9. f3 {[%clk 0:02:27]}  Be7 {[%clk 0:02:45]} 10. Qd2 {[%clk 0:02:22]}  Qc7 {[%clk 0:02:44]} 11. O-O-O {[%clk 0:02:22]}  b5 {[%clk 0:02:43]} 12. Kb1 {[%clk 0:02:19]}  Bd7 {[%clk 0:02:39]} 13. g4 {[%clk 0:02:18]}  b4 {[%clk 0:02:31]} 14. Nce2 {[%clk 0:02:14]}  a5 {[%clk 0:02:32]} 15. g5 {[%clk 0:01:33]}  Nh5 {[%clk 0:02:22]} 16. Qe1 {[%clk 0:01:02]}  a4 {[%clk 0:02:08]} 17. Bc4 {[%clk 0:01:02]}  Nxe4 {[%clk 0:01:59]} 18. Bxe6 {[%clk 0:00:56]}  fxe6 {[%clk 0:01:45]} 19. fxe4 {[%clk 0:00:55]}  Qc4 {[%clk 0:01:36]} 20. Ng3 {[%clk 0:00:32]}  Nxg3 {[%clk 0:01:33]} 21. hxg3 {[%clk 0:00:33]}  e5 {[%clk 0:00:40]} 22. Nf5 {[%clk 0:00:33]}  Qxe4 {[%clk 0:00:37]} 23. Nxd6+ {[%clk 0:00:16]}  Bxd6 {[%clk 0:00:37]} 24. Rxd6 {[%clk 0:00:17]}  b3 {[%clk 0:00:29]} 25. Rh2 {[%clk 0:00:07]}  Bf5 {[%clk 0:00:27]} 26. Ka1 {[%clk 0:00:03]}  bxc2 {[%clk 0:00:20]} 27. Qf2 {[%clk 0:00:02]}  c1=Q+ {[%clk 0:00:17]} 0-1


[Site "https://www.chess.com"]

[Event "Titled Tuesday Blitz March 21 Early 2023"]
[White "Albornoz Cabrera, Carlos Daniel"]
[Black "Ingebretsen, Jens E"]
[WhiteFideId "3518736"]
[BlackFideId "1522965"]
[WhiteElo "2501"]
[BlackElo "2213"]
[Result "1-0"]
[Round "03"]
[TimeControl "180+2"]
[Date "2023.03.21"]
[WhiteClock "0:00:45"]
[BlackClock "0:00:07"]

1. Nf3 {[%clk 0:03:00]}  d5 {[%clk 0:02:59]} 2. c4 {[%clk 0:03:00]}  d4 {[%clk 0:02:59]} 3. b4 {[%clk 0:03:00]}  Bg4 {[%clk 0:02:58]} 4. Qb3 {[%clk 0:02:56]}  g6 {[%clk 0:02:56]} 5. Ne5 {[%clk 0:02:48]}  Be6 {[%clk 0:02:53]} 6. g3 {[%clk 0:02:48]}  Bg7 {[%clk 0:02:52]} 7. Nd3 {[%clk 0:02:48]}  Nd7 {[%clk 0:02:50]} 8. Bg2 {[%clk 0:02:47]}  c6 {[%clk 0:02:50]} 9. O-O {[%clk 0:02:46]}  Ngf6 {[%clk 0:02:38]} 10. b5 {[%clk 0:02:38]}  cxb5 {[%clk 0:02:16]} 11. Qxb5 {[%clk 0:02:36]}  O-O {[%clk 0:02:16]} 12. Nf4 {[%clk 0:02:27]}  Bf5 {[%clk 0:02:03]} 13. d3 {[%clk 0:02:27]}  Rb8 {[%clk 0:01:56]} 14. a4 {[%clk 0:02:22]}  Qc7 {[%clk 0:01:51]} 15. Ba3 {[%clk 0:02:18]}  Rfe8 {[%clk 0:01:50]} 16. Nd2 {[%clk 0:02:18]}  e5 {[%clk 0:01:46]} 17. Nd5 {[%clk 0:02:17]}  Nxd5 {[%clk 0:01:46]} 18. Bxd5 {[%clk 0:02:17]}  b6 {[%clk 0:01:44]} 19. Ne4 {[%clk 0:02:07]}  Bxe4 {[%clk 0:01:41]} 20. Bxe4 {[%clk 0:02:08]}  Nc5 {[%clk 0:01:41]} 21. Bd5 {[%clk 0:02:08]}  e4 {[%clk 0:01:32]} 22. Rfe1 {[%clk 0:01:42]}  e3 {[%clk 0:01:27]} 23. f4 {[%clk 0:01:41]}  h5 {[%clk 0:01:24]} 24. Rab1 {[%clk 0:01:36]}  h4 {[%clk 0:01:23]} 25. Bxc5 {[%clk 0:01:35]}  bxc5 {[%clk 0:01:22]} 26. Qa6 {[%clk 0:01:36]}  hxg3 {[%clk 0:01:16]} 27. hxg3 {[%clk 0:01:35]}  g5 {[%clk 0:01:11]} 28. Kg2 {[%clk 0:01:22]}  gxf4 {[%clk 0:01:03]} 29. Rf1 {[%clk 0:01:21]}  Rxb1 {[%clk 0:00:51]} 30. Rxb1 {[%clk 0:01:22]}  Rf8 {[%clk 0:00:34]} 31. Rf1 {[%clk 0:01:14]}  fxg3 {[%clk 0:00:30]} 32. Qg6 {[%clk 0:01:13]}  Qd7 {[%clk 0:00:28]} 33. Qh5 {[%clk 0:01:11]}  a5 {[%clk 0:00:25]} 34. Rf5 {[%clk 0:01:00]}  Qe7 {[%clk 0:00:22]} 35. Qg6 {[%clk 0:00:50]}  Qc7 {[%clk 0:00:07]} 36. Rg5 {[%clk 0:00:45]} 1-0


[Site "https://www.chess.com"]

[Event "Titled Tuesday Blitz March 21 Early 2023"]
[White "Yuan, Qingyu"]
[Black "Petukhov, Dmitry"]
[WhiteFideId "8609772"]
[BlackFideId "4142748"]
[WhiteElo "2359"]
[BlackElo "2311"]
[Result "0-1"]
[Round "03"]
[TimeControl "180+2"]
[Date "2023.03.21"]
[WhiteClock "0:00:02"]
[BlackClock "0:00:33"]

1. e4 {[%clk 0:03:00]}  c5 {[%clk 0:03:00]} 2. Nf3 {[%clk 0:03:00]}  d6 {[%clk 0:02:58]} 3. Bb5+ {[%clk 0:03:00]}  Nc6 {[%clk 0:02:58]} 4. O-O {[%clk 0:03:00]}  Bd7 {[%clk 0:02:55]} 5. Re1 {[%clk 0:03:00]}  a6 {[%clk 0:02:55]} 6. Bf1 {[%clk 0:03:00]}  Bg4 {[%clk 0:02:51]} 7. c3 {[%clk 0:02:56]}  e6 {[%clk 0:02:49]} 8. d4 {[%clk 0:02:30]}  cxd4 {[%clk 0:02:43]} 9. cxd4 {[%clk 0:02:30]}  Bxf3 {[%clk 0:02:34]} 10. gxf3 {[%clk 0:02:29]}  d5 {[%clk 0:02:33]} 11. Nc3 {[%clk 0:02:17]}  Nf6 {[%clk 0:02:18]} 12. Be3 {[%clk 0:02:05]}  Be7 {[%clk 0:02:14]} 13. Qb3 {[%clk 0:01:51]}  O-O {[%clk 0:02:10]} 14. e5 {[%clk 0:01:48]}  Nh5 {[%clk 0:02:07]} 15. f4 {[%clk 0:01:42]}  Bb4 {[%clk 0:01:55]} 16. Be2 {[%clk 0:01:23]}  Qh4 {[%clk 0:01:51]} 17. Qd1 {[%clk 0:01:13]}  Nxf4 {[%clk 0:01:46]} 18. Bf1 {[%clk 0:01:00]}  f6 {[%clk 0:01:32]} 19. Bxf4 {[%clk 0:00:20]}  Qxf4 {[%clk 0:01:31]} 20. Qc1 {[%clk 0:00:20]}  Qxc1 {[%clk 0:01:25]} 21. Raxc1 {[%clk 0:00:20]}  Nxd4 {[%clk 0:01:25]} 22. Bg2 {[%clk 0:00:21]}  Rac8 {[%clk 0:01:07]} 23. Kf1 {[%clk 0:00:18]}  fxe5 {[%clk 0:01:04]} 24. Rxe5 {[%clk 0:00:19]}  Rf6 {[%clk 0:00:56]} 25. Rd1 {[%clk 0:00:18]}  Bc5 {[%clk 0:00:52]} 26. Rd2 {[%clk 0:00:08]}  Rcf8 {[%clk 0:00:47]} 27. a3 {[%clk 0:00:04]}  Nb3 {[%clk 0:00:42]} 28. Rde2 {[%clk 0:00:04]}  Rxf2+ {[%clk 0:00:43]} 29. Rxf2 {[%clk 0:00:02]}  Rxf2+ {[%clk 0:00:43]} 30. Kg1 {[%clk 0:00:02]}  Re2+ {[%clk 0:00:33]} 0-1


[Site "https://www.chess.com"]

[Event "Titled Tuesday Blitz March 21 Early 2023"]
[White "Vaglio Munoz, Jaime"]
[Black "Vaishali, Rameshbabu"]
[WhiteFideId "6500145"]
[BlackFideId "5091756"]
[WhiteElo "2199"]
[BlackElo "2410"]
[Result "1-0"]
[Round "03"]
[TimeControl "180+2"]
[Date "2023.03.21"]
[WhiteClock "0:00:41"]
[BlackClock "0:00:02"]

1. Nf3 {[%clk 0:03:00]}  d5 {[%clk 0:02:57]} 2. c4 {[%clk 0:02:56]}  e6 {[%clk 0:02:56]} 3. b3 {[%clk 0:02:55]}  Nf6 {[%clk 0:02:52]} 4. Bb2 {[%clk 0:02:55]}  c5 {[%clk 0:02:51]} 5. cxd5 {[%clk 0:02:53]}  exd5 {[%clk 0:02:49]} 6. g3 {[%clk 0:02:49]}  Nc6 {[%clk 0:02:48]} 7. Bg2 {[%clk 0:02:49]}  Bd6 {[%clk 0:02:41]} 8. Nc3 {[%clk 0:02:46]}  O-O {[%clk 0:02:40]} 9. O-O {[%clk 0:02:44]}  Re8 {[%clk 0:02:28]} 10. d4 {[%clk 0:02:43]}  a6 {[%clk 0:02:22]} 11. dxc5 {[%clk 0:02:40]}  Bxc5 {[%clk 0:02:23]} 12. Rc1 {[%clk 0:02:38]}  Ba7 {[%clk 0:02:22]} 13. Na4 {[%clk 0:02:36]}  Qe7 {[%clk 0:02:12]} 14. Bd4 {[%clk 0:02:29]}  Nxd4 {[%clk 0:02:01]} 15. Nxd4 {[%clk 0:02:28]}  Bg4 {[%clk 0:01:57]} 16. Re1 {[%clk 0:02:18]}  h5 {[%clk 0:01:30]} 17. Qd3 {[%clk 0:02:16]}  h4 {[%clk 0:01:30]} 18. Nf5 {[%clk 0:02:15]}  Qe5 {[%clk 0:01:28]} 19. Nxh4 {[%clk 0:02:10]}  Bxe2 {[%clk 0:01:19]} 20. Qf5 {[%clk 0:02:03]}  Qxf5 {[%clk 0:01:15]} 21. Nxf5 {[%clk 0:02:04]}  Ng4 {[%clk 0:01:15]} 22. Nc5 {[%clk 0:01:59]}  Bb5 {[%clk 0:00:38]} 23. Ne3 {[%clk 0:01:17]}  Ne5 {[%clk 0:00:25]} 24. Bxd5 {[%clk 0:01:14]}  Bxc5 {[%clk 0:00:15]} 25. Rxc5 {[%clk 0:01:14]}  Nd3 {[%clk 0:00:15]} 26. Rec1 {[%clk 0:01:13]}  Nxc5 {[%clk 0:00:12]} 27. Rxc5 {[%clk 0:01:13]}  Rac8 {[%clk 0:00:12]} 28. Rxc8 {[%clk 0:01:11]}  Rxc8 {[%clk 0:00:13]} 29. Bxb7 {[%clk 0:01:11]}  Rc1+ {[%clk 0:00:13]} 30. Kg2 {[%clk 0:01:11]}  Ra1 {[%clk 0:00:10]} 31. a4 {[%clk 0:01:11]}  Bd3 {[%clk 0:00:11]} 32. Bd5 {[%clk 0:01:09]}  a5 {[%clk 0:00:08]} 33. Ng4 {[%clk 0:01:06]}  Bf1+ {[%clk 0:00:03]} 34. Kf3 {[%clk 0:01:04]}  Kf8 {[%clk 0:00:03]} 35. Ne5 {[%clk 0:01:03]}  f6 {[%clk 0:00:03]} 36. Nc6 {[%clk 0:00:59]}  Rd1 {[%clk 0:00:04]} 37. Be4 {[%clk 0:00:56]}  Bd3 {[%clk 0:00:03]} 38. Nxa5 {[%clk 0:00:54]}  Bxe4+ {[%clk 0:00:02]} 39. Kxe4 {[%clk 0:00:55]}  Rh1 {[%clk 0:00:03]} 40. h4 {[%clk 0:00:55]}  Re1+ {[%clk 0:00:03]} 41. Kd3 {[%clk 0:00:54]}  Re5 {[%clk 0:00:02]} 42. Nc4 {[%clk 0:00:53]}  Rf5 {[%clk 0:00:02]} 43. f4 {[%clk 0:00:51]}  g5 {[%clk 0:00:02]} 44. hxg5 {[%clk 0:00:50]}  fxg5 {[%clk 0:00:03]} 45. Ke4 {[%clk 0:00:49]}  Rc5 {[%clk 0:00:02]} 46. fxg5 {[%clk 0:00:47]}  Rxg5 {[%clk 0:00:03]} 47. Kf4 {[%clk 0:00:46]}  Rc5 {[%clk 0:00:04]} 48. a5 {[%clk 0:00:46]}  Ke7 {[%clk 0:00:04]} 49. g4 {[%clk 0:00:46]}  Rb5 {[%clk 0:00:03]} 50. a6 {[%clk 0:00:43]}  Rc5 {[%clk 0:00:03]} 51. a7 {[%clk 0:00:42]}  Rc8 {[%clk 0:00:02]} 52. Nb6 {[%clk 0:00:42]}  Rf8+ {[%clk 0:00:02]} 53. Ke5 {[%clk 0:00:41]} 1-0


[Site "https://www.chess.com"]

[Event "Titled Tuesday Blitz March 21 Early 2023"]
[White "Kaufman, Raymond"]
[Black "Volkov, Sergey"]
[WhiteFideId "2015056"]
[BlackFideId "4122763"]
[WhiteElo "2321"]
[BlackElo "2401"]
[Result "1-0"]
[Round "03"]
[TimeControl "180+2"]
[Date "2023.03.21"]
[WhiteClock "0:00:04"]
[BlackClock "0:00:07"]

1. c4 {[%clk 0:03:00]}  c6 {[%clk 0:02:58]} 2. g3 {[%clk 0:03:00]}  d5 {[%clk 0:02:58]} 3. Bg2 {[%clk 0:03:01]}  dxc4 {[%clk 0:02:58]} 4. Qc2 {[%clk 0:02:51]}  e5 {[%clk 0:02:54]} 5. Nf3 {[%clk 0:02:43]}  Nd7 {[%clk 0:02:52]} 6. Qxc4 {[%clk 0:02:41]}  Bd6 {[%clk 0:02:51]} 7. Nc3 {[%clk 0:02:36]}  Ngf6 {[%clk 0:02:50]} 8. d3 {[%clk 0:02:36]}  O-O {[%clk 0:02:50]} 9. Ng5 {[%clk 0:02:31]}  a5 {[%clk 0:02:28]} 10. O-O {[%clk 0:02:16]}  Nc5 {[%clk 0:02:20]} 11. Be3 {[%clk 0:02:02]}  Qe7 {[%clk 0:02:06]} 12. Bxc5 {[%clk 0:01:50]}  Bxc5 {[%clk 0:02:05]} 13. Nce4 {[%clk 0:01:49]}  Bd4 {[%clk 0:02:01]} 14. Nxf6+ {[%clk 0:01:36]}  Qxf6 {[%clk 0:01:59]} 15. Ne4 {[%clk 0:01:35]}  Qe7 {[%clk 0:01:59]} 16. Rab1 {[%clk 0:01:35]}  Be6 {[%clk 0:01:55]} 17. Qa4 {[%clk 0:01:33]}  b5 {[%clk 0:01:54]} 18. Qc2 {[%clk 0:01:20]}  Bxa2 {[%clk 0:01:52]} 19. Rbc1 {[%clk 0:01:16]}  Bd5 {[%clk 0:01:51]} 20. e3 {[%clk 0:01:15]}  Bb6 {[%clk 0:01:49]} 21. Nc3 {[%clk 0:01:08]}  Bxg2 {[%clk 0:01:47]} 22. Kxg2 {[%clk 0:01:08]}  a4 {[%clk 0:01:45]} 23. Ne4 {[%clk 0:01:07]}  Rfc8 {[%clk 0:01:44]} 24. Rfd1 {[%clk 0:01:06]}  h6 {[%clk 0:01:42]} 25. h4 {[%clk 0:01:02]}  c5 {[%clk 0:01:37]} 26. Qe2 {[%clk 0:00:58]}  Qb7 {[%clk 0:01:31]} 27. Qf3 {[%clk 0:00:58]}  Kh8 {[%clk 0:01:30]} 28. Nd6 {[%clk 0:00:56]}  Qxf3+ {[%clk 0:01:23]} 29. Kxf3 {[%clk 0:00:57]}  Rcb8 {[%clk 0:01:15]} 30. Nxf7+ {[%clk 0:00:56]}  Kg8 {[%clk 0:01:15]} 31. Nxe5 {[%clk 0:00:57]}  Rb7 {[%clk 0:01:04]} 32. d4 {[%clk 0:00:49]}  cxd4 {[%clk 0:01:03]} 33. exd4 {[%clk 0:00:50]}  b4 {[%clk 0:00:59]} 34. d5 {[%clk 0:00:40]}  Rf8+ {[%clk 0:00:56]} 35. Ke4 {[%clk 0:00:38]}  Bxf2 {[%clk 0:00:55]} 36. d6 {[%clk 0:00:38]}  Bxg3 {[%clk 0:00:54]} 37. d7 {[%clk 0:00:38]}  Bxh4 {[%clk 0:00:31]} 38. Ng6 {[%clk 0:00:37]}  Rd8 {[%clk 0:00:31]} 39. Nxh4 {[%clk 0:00:28]}  Rbxd7 {[%clk 0:00:30]} 40. Rxd7 {[%clk 0:00:27]}  Rxd7 {[%clk 0:00:30]} 41. Ra1 {[%clk 0:00:24]}  Ra7 {[%clk 0:00:27]} 42. Nf5 {[%clk 0:00:20]}  Kh7 {[%clk 0:00:27]} 43. Nd4 {[%clk 0:00:18]}  Ra6 {[%clk 0:00:25]} 44. Nc2 {[%clk 0:00:17]}  b3 {[%clk 0:00:24]} 45. Na3 {[%clk 0:00:17]}  Rg6 {[%clk 0:00:22]} 46. Rd1 {[%clk 0:00:13]}  Rg2 {[%clk 0:00:21]} 47. Rd4 {[%clk 0:00:11]}  Rxb2 {[%clk 0:00:20]} 48. Rxa4 {[%clk 0:00:12]}  Ra2 {[%clk 0:00:20]} 49. Kd3 {[%clk 0:00:12]}  g5 {[%clk 0:00:15]} 50. Kc3 {[%clk 0:00:11]}  b2 {[%clk 0:00:14]} 51. Kc2 {[%clk 0:00:11]}  h5 {[%clk 0:00:11]} 52. Kb1 {[%clk 0:00:11]}  Ra1+ {[%clk 0:00:11]} 53. Kxb2 {[%clk 0:00:12]}  Rg1 {[%clk 0:00:11]} 54. Ra7+ {[%clk 0:00:12]}  Kg6 {[%clk 0:00:11]} 55. Nc4 {[%clk 0:00:11]}  h4 {[%clk 0:00:11]} 56. Ra8 {[%clk 0:00:11]}  h3 {[%clk 0:00:11]} 57. Rh8 {[%clk 0:00:11]}  g4 {[%clk 0:00:11]} 58. Kc2 {[%clk 0:00:09]}  Rg2+ {[%clk 0:00:09]} 59. Kd3 {[%clk 0:00:09]}  Kg5 {[%clk 0:00:09]} 60. Ne3 {[%clk 0:00:09]}  Rg1 {[%clk 0:00:09]} 61. Ke4 {[%clk 0:00:08]}  Re1 {[%clk 0:00:08]} 62. Rg8+ {[%clk 0:00:08]}  Kh4 {[%clk 0:00:08]} 63. Rxg4+ {[%clk 0:00:07]}  Kh5 {[%clk 0:00:08]} 64. Rg3 {[%clk 0:00:06]}  Kh4 {[%clk 0:00:08]} 65. Rg4+ {[%clk 0:00:03]}  Kh5 {[%clk 0:00:08]} 66. Rg3 {[%clk 0:00:04]}  Kh4 {[%clk 0:00:08]} 67. Rg8 {[%clk 0:00:04]}  h2 {[%clk 0:00:07]} 68. Rh8+ {[%clk 0:00:04]}  Kg3 {[%clk 0:00:08]} 69. Rg8+ {[%clk 0:00:04]}  Kf2 {[%clk 0:00:07]} 70. Rg2# {[%clk 0:00:04]} 1-0


[Site "https://www.chess.com"]